bitfinex/quotes_BTCUSD_20241003
["timestamp","ask_amount","ask_price","bid_price","bid_amount"]
[1727929754323,0.02631074,61492.0,61491.0,0.1791]
[1727929755585,0.000818,61496.0,61491.0,0.049]
[1727929755856,0.000818,61496.0,61495.0,0.23963164]
[1727929756605,0.000818,61496.0,61495.0,0.25672969]
[1727929757344,0.000818,61496.0,61495.0,0.26572969]
[1727929757610,0.000818,61496.0,61495.0,0.27472969]
[1727929758846,0.02630945,61496.0,61495.0,0.27472969]
[1727929761069,0.02630945,61496.0,61495.0,0.16518905]
[1727929761319,0.03130945,61496.0,61495.0,0.148091]
[1727929761565,0.03854845,61496.0,61495.0,0.018]
[1727929762057,0.03854845,61496.0,61495.0,0.148091]
[1727929765627,0.16863745,61496.0,61495.0,0.018]
[1727929765847,0.18063745,61496.0,61495.0,0.018]
[1727929766092,0.44472919,61496.0,61495.0,0.018]
[1727929766313,0.321546,61496.0,61495.0,0.018]
[1727929766539,0.44362315,61496.0,61495.0,0.018]
[1727929766774,0.321546,61496.0,61495.0,0.009]
[1727929766997,0.44362315,61496.0,61495.0,0.01]
[1727929767215,0.44362489,61496.0,61495.0,0.001]
[1727929767426,0.321546,61496.0,61495.0,0.001]
[1727929767648,0.321546,61496.0,61491.0,0.001636]
[1727929767649,0.012,61492.0,61491.0,0.001636]
[1727929767871,0.06081822,61492.0,61491.0,0.001636]
[1727929768138,0.06822342,61492.0,61491.0,0.001636]
[1727929768359,0.06822394,61492.0,61491.0,0.001636]
[1727929768576,0.06822342,61492.0,61491.0,0.001636]
[1727929768784,0.07322342,61492.0,61491.0,0.001636]
[1727929768996,0.07322342,61492.0,61491.0,0.002636]
[1727929768997,0.20332142,61492.0,61491.0,0.002636]
[1727929769467,0.25322717,61492.0,61491.0,0.004636]
[1727929769683,0.22879816,61492.0,61491.0,0.004636]
[1727929770131,0.17999983,61492.0,61491.0,0.004636]
[1727929770351,0.04990183,61492.0,61491.0,0.004636]
[1727929776833,0.04790183,61492.0,61491.0,0.004636]
[1727929777340,0.04990183,61492.0,61491.0,0.004636]
[1727929777558,0.0244052,61492.0,61491.0,0.004636]
[1727929778205,0.1553212,61492.0,61491.0,0.004636]
[1727929778887,0.1533212,61492.0,61491.0,0.004636]
[1727929779322,0.1553212,61492.0,61491.0,0.004636]
[1727929779763,0.1553212,61492.0,61491.0,0.002636]
[1727929779978,0.1553212,61492.0,61491.0,0.003636]
[1727929780449,0.1533212,61492.0,61491.0,0.002636]
[1727929780665,0.05072002,61492.0,61491.0,0.002636]
[1727929780905,0.05072002,61492.0,61491.0,0.001636]
[1727929781584,0.05172002,61492.0,61491.0,0.001636]
[1727929782022,0.05072002,61492.0,61491.0,0.001636]
[1727929782277,0.05172002,61492.0,61491.0,0.001636]
[1727929783807,0.04972002,61492.0,61491.0,0.001636]
[1727929783998,0.18181802,61492.0,61491.0,0.001636]
[1727929785112,0.05172002,61492.0,61491.0,0.001636]
[1727929785627,0.18181802,61492.0,61491.0,0.001636]
[1727929785862,0.05172002,61492.0,61491.0,0.001636]
[1727929787873,0.04972002,61492.0,61491.0,0.001636]
[1727929788952,0.05172002,61492.0,61491.0,0.131736]
[1727929789838,0.05172002,61492.0,61491.0,0.001636]
[1727929791355,0.05172002,61492.0,61491.0,0.131736]
[1727929791537,0.05172002,61492.0,61491.0,0.001636]
[1727929794849,0.0262232,61492.0,61491.0,0.001636]
[1727929796856,0.0262232,61492.0,61491.0,0.131736]
[1727929798010,0.05171946,61492.0,61491.0,0.131736]
[1727929799831,0.05171946,61492.0,61491.0,0.001636]
[1727929800599,0.05171946,61492.0,61491.0,0.131736]
[1727929800867,0.18181746,61492.0,61491.0,0.001636]
[1727929801687,0.27251746,61492.0,61491.0,0.001636]
[1727929802517,0.40780568,61492.0,61491.0,0.001636]
[1727929802772,0.09846704,61492.0,61491.0,0.001636]
[1727929803035,0.04971946,61492.0,61491.0,0.001636]
[1727929803789,0.04971946,61492.0,61491.0,0.131736]
[1727929804515,0.04971946,61492.0,61491.0,0.001636]
[1727929804763,0.0262232,61492.0,61491.0,0.001636]
[1727929806106,0.1563212,61492.0,61491.0,0.001636]
[1727929807677,0.20506878,61492.0,61491.0,0.001636]
[1727929808136,0.1563212,61492.0,61491.0,0.001636]
[1727929808369,0.20506878,61492.0,61491.0,0.001636]
[1727929809270,0.23056559,61492.0,61491.0,0.001636]
[1727929809692,0.18181801,61492.0,61491.0,0.001636]
[1727929810140,0.09856389,61492.0,61491.0,0.001636]
[1727929810360,0.08856389,61492.0,61491.0,0.131736]
[1727929810591,0.03472001,61492.0,61491.0,0.303536]
[1727929810815,0.03472001,61492.0,61491.0,0.326536]
[1727929811034,0.0092232,61492.0,61491.0,0.326536]
[1727929813460,0.0082232,61492.0,61491.0,0.326536]
[1727929813890,0.0337175,61492.0,61491.0,0.336536]
[1727929814144,0.0337175,61492.0,61491.0,0.326536]
[1727929814351,0.0337175,61492.0,61491.0,0.340536]
[1727929815066,0.0337175,61492.0,61491.0,0.353536]
[1727929815280,0.0082232,61492.0,61491.0,0.326536]
[1727929815745,0.0082232,61492.0,61491.0,0.339536]
[1727929816637,0.0082232,61492.0,61491.0,0.352536]
[1727929817322,0.000818,61492.0,61491.0,0.352536]
[1727929818416,0.02631196,61492.0,61491.0,0.352536]
[1727929819716,0.000818,61492.0,61491.0,0.352536]
[1727929821259,0.000818,61492.0,61491.0,0.51572271]
[1727929821493,0.000818,61492.0,61491.0,0.61572271]
[1727929822849,0.02631063,61492.0,61491.0,0.61572271]
[1727929823066,0.000818,61496.0,61495.0,0.130091]
[1727929823308,0.000818,61496.0,61495.0,0.48481835]
[1727929823536,0.000818,61496.0,61495.0,0.58081835]
[1727929823790,0.02631033,61496.0,61495.0,0.58081835]
[1727929824238,0.02631033,61496.0,61495.0,0.59881835]
[1727929828737,0.000819,61501.0,61495.0,0.59881835]
[1727929828738,0.000819,61501.0,61500.0,0.40992164]
[1727929828956,0.24893219,61515.0,61514.0,0.130051]
[1727929829173,0.24893219,61515.0,61512.0,0.130053]
[1727929829174,0.25893219,61515.0,61512.0,0.130053]
[1727929829387,0.005,61513.0,61512.0,0.130053]
[1727929830967,0.005,61513.0,61512.0,0.138053]
[1727929831180,0.005,61513.0,61512.0,0.134053]
[1727929831618,0.005,61513.0,61512.0,0.394166]
[1727929832057,0.005,61514.0,61513.0,0.130053]
[1727929832579,0.003636,61520.0,61515.0,0.130049]
[1727929832580,0.015,61516.0,61515.0,0.130049]
[1727929833047,0.005,61518.0,61515.0,0.24393219]
[1727929833260,0.001636,61520.0,61519.0,0.208641]
[1727929834145,0.006636,61520.0,61519.0,0.208641]
[1727929834365,0.001636,61520.0,61519.0,0.208641]
[1727929834575,0.006636,61520.0,61519.0,0.208641]
[1727929835220,0.001636,61520.0,61519.0,0.208641]
[1727929835644,0.006636,61520.0,61519.0,0.209641]
[1727929835868,0.001636,61520.0,61519.0,0.209641]
[1727929836121,0.001636,61520.0,61519.0,0.210641]
[1727929836862,0.006636,61520.0,61519.0,0.210641]
[1727929837754,0.006636,61520.0,61519.0,0.132041]
[1727929837983,0.03212211,61520.0,61519.0,0.132041]
[1727929838224,0.02712211,61520.0,61519.0,0.132041]
[1727929838452,0.03212211,61520.0,61519.0,0.132041]
[1727929838723,0.006636,61520.0,61519.0,0.132041]
[1727929839860,0.006636,61520.0,61493.0,0.29238869]
[1727929840081,0.006636,61520.0,61516.0,0.130046]
[1727929840082,0.002,61517.0,61516.0,0.130046]
[1727929840309,0.005,61518.0,61517.0,0.130045]
[1727929840532,0.005,61518.0,61514.0,0.260102]
[1727929840747,0.005,61515.0,61514.0,0.130051]
[1727929841209,0.005,61515.0,61505.0,0.26014]
[1727929841210,0.005,61509.0,61503.0,0.1299811]
[1727929841445,0.005,61509.0,61508.0,0.24393219]
[1727929841656,0.005,61509.0,61503.0,0.1299811]
[1727929841657,0.005,61509.0,61505.0,0.26014]
[1727929841881,0.005,61509.0,61503.0,0.0809]
[1727929841882,0.03048918,61509.0,61508.0,0.130064]
[1727929843713,0.03048918,61509.0,61508.0,0.133064]
[1727929844679,0.005,61509.0,61508.0,0.133064]
[1727929845407,0.005,61509.0,61508.0,0.130064]
[1727929845408,0.005,61509.0,61508.0,0.133064]
[1727929846501,0.005,61509.0,61508.0,0.136064]
[1727929848347,0.000818,61514.0,61512.0,0.0796]
[1727929848570,0.000818,61514.0,61513.0,0.26179395]
[1727929848785,0.000818,61514.0,61513.0,0.28479395]
[1727929850382,0.000818,61514.0,61513.0,0.29479395]
[1727929851297,0.000818,61514.0,61513.0,0.30379395]
[1727929852438,0.000818,61514.0,61513.0,0.29379395]
[1727929852665,0.000818,61514.0,61513.0,0.171053]
[1727929853132,0.000818,61514.0,61513.0,0.162053]
[1727929853345,0.000818,61514.0,61513.0,0.172053]
[1727929854229,0.000818,61514.0,61513.0,0.162053]
[1727929854450,0.000818,61514.0,61513.0,0.172053]
[1727929854677,0.000818,61514.0,61513.0,0.272053]
[1727929855127,0.000818,61514.0,61513.0,0.263053]
[1727929855361,0.000818,61514.0,61513.0,0.272053]
[1727929855641,0.000818,61514.0,61513.0,0.362853]
[1727929855867,0.000818,61514.0,61513.0,0.444653]
[1727929856777,0.000818,61514.0,61513.0,0.425653]
[1727929857207,0.000818,61514.0,61513.0,0.444653]
[1727929857423,0.000818,61514.0,61513.0,0.59783971]
[1727929857639,0.000818,61514.0,61513.0,0.61083971]
[1727929858831,0.000818,61514.0,61513.0,0.60183971]
[1727929859047,0.000818,61514.0,61513.0,0.58883971]
[1727929859268,0.000818,61514.0,61513.0,0.61383971]
[1727929859483,0.02630156,61514.0,61513.0,0.60083971]
[1727929859703,0.02630156,61514.0,61513.0,0.72058066]
[1727929859937,0.02630156,61514.0,61513.0,0.73358066]
[1727929860155,0.02630156,61514.0,61513.0,0.74558066]
[1727929861254,0.02630156,61514.0,61513.0,0.65478066]
[1727929861905,0.02630156,61514.0,61513.0,0.64278066]
[1727929862341,0.02630156,61514.0,61513.0,0.65478066]
[1727929862552,0.02630156,61514.0,61513.0,0.64178066]
[1727929862979,0.000818,61514.0,61513.0,0.64278066]
[1727929863234,0.000818,61514.0,61513.0,0.64178066]
[1727929863438,0.000818,61514.0,61513.0,0.65478066]
[1727929864573,0.000818,61514.0,61513.0,0.74868066]
[1727929864790,0.000818,61514.0,61513.0,0.78129066]
[1727929865932,0.000818,61514.0,61513.0,0.76829066]
[1727929866142,0.000818,61514.0,61513.0,0.78129066]
[1727929866404,0.000818,61514.0,61513.0,0.76829066]
[1727929866842,0.000818,61514.0,61513.0,0.78229066]
[1727929867066,0.000818,61514.0,61513.0,0.75629066]
[1727929867281,0.000818,61514.0,61513.0,0.78229066]
[1727929867500,0.000818,61514.0,61513.0,0.76829066]
[1727929867962,0.000818,61514.0,61513.0,0.75629066]
[1727929868718,0.000818,61514.0,61513.0,0.77029066]
[1727929868949,0.000818,61514.0,61513.0,0.78429066]
[1727929869173,0.000818,61514.0,61513.0,0.77029066]
[1727929870059,0.000818,61514.0,61513.0,0.78429066]
[1727929870282,0.001636,61525.0,61524.0,0.13003]
[1727929870508,0.001636,61525.0,61524.0,0.59181671]
[1727929870724,0.01592597,61526.0,61525.0,0.123]
[1727929870989,0.01592597,61526.0,61525.0,0.54795566]
[1727929871207,0.000818,61528.0,61527.0,0.153024]
[1727929872757,0.000818,61528.0,61527.0,0.164024]
[1727929872965,0.02629837,61528.0,61527.0,0.164024]
[1727929874278,0.02629837,61528.0,61527.0,0.174024]
[1727929874494,0.000818,61528.0,61527.0,0.274024]
[1727929876382,0.000818,61528.0,61527.0,0.27817444]
[1727929877269,0.000818,61528.0,61527.0,0.26817444]
[1727929877509,0.000818,61528.0,61527.0,0.26717444]
[1727929877731,0.000818,61528.0,61527.0,0.27817444]
[1727929880360,0.000818,61528.0,61527.0,0.26817444]
[1727929880580,0.000818,61528.0,61527.0,0.27003057]
[1727929880810,0.000818,61528.0,61527.0,0.28203057]
[1727929881038,0.000818,61528.0,61527.0,0.44521728]
[1727929881303,0.000818,61528.0,61527.0,0.44336115]
[1727929881752,0.000818,61528.0,61527.0,0.52970638]
[1727929884107,0.000818,61528.0,61527.0,0.51870638]
[1727929884341,0.000818,61528.0,61527.0,0.52970638]
[1727929884825,0.000819,61534.0,61533.0,0.130011]
[1727929885055,0.000819,61534.0,61533.0,0.31525623]
[1727929886010,0.000819,61534.0,61533.0,0.31850617]
[1727929886224,0.000819,61534.0,61533.0,0.32550617]
[1727929886891,0.000819,61534.0,61533.0,0.31850617]
[1727929887553,0.000819,61534.0,61533.0,0.32550617]
[1727929888428,0.000819,61534.0,61533.0,0.33350617]
[1727929888643,0.000819,61534.0,61533.0,0.43025623]
[1727929889586,0.000819,61534.0,61533.0,0.82937513]
[1727929889805,0.000818,61538.0,61537.0,0.253003]
[1727929890036,0.000818,61538.0,61537.0,0.67103494]
[1727929891707,0.000818,61538.0,61537.0,0.69603494]
[1727929893057,0.000818,61538.0,61537.0,0.68303494]
[1727929893264,0.000818,61538.0,61537.0,0.69703494]
[1727929893483,0.000818,61538.0,61537.0,0.68503494]
[1727929893741,0.24893219,61552.0,61551.0,0.129973]
[1727929894000,0.24893219,61552.0,61551.0,0.21631823]
[1727929894257,0.005,61552.0,61551.0,0.21631823]
[1727929895492,0.005,61552.0,61551.0,0.21831823]
[1727929895985,0.005818,61552.0,61551.0,0.21831823]
[1727929897018,0.000818,61552.0,61551.0,0.21831823]
[1727929897268,0.000818,61552.0,61551.0,0.24131823]
[1727929897515,0.000818,61552.0,61551.0,0.24456728]
[1727929898011,0.000818,61552.0,61551.0,0.34131823]
[1727929898510,0.000818,61552.0,61551.0,0.41741823]
[1727929898753,0.000818,61552.0,61551.0,0.67410494]
[1727929899725,0.000818,61552.0,61551.0,0.67310494]
[1727929900174,0.000818,61552.0,61551.0,0.256973]
[1727929900429,0.000818,61552.0,61551.0,0.34331823]
[1727929900864,0.000818,61552.0,61551.0,0.33931823]
[1727929901118,0.000818,61552.0,61551.0,0.34431823]
[1727929901572,0.000818,61552.0,61551.0,0.35831823]
[1727929901807,0.000818,61552.0,61551.0,0.35331823]
[1727929902067,0.000818,61552.0,61551.0,0.34631823]
[1727929902578,0.000818,61552.0,61551.0,0.33931823]
[1727929902830,0.000818,61552.0,61551.0,0.35031823]
[1727929903199,0.000818,61552.0,61551.0,0.36031823]
[1727929903672,0.000818,61552.0,61551.0,0.35031823]
[1727929904101,0.000818,61552.0,61551.0,0.70260494]
[1727929904735,0.000818,61552.0,61551.0,0.69260494]
[1727929905165,0.000818,61552.0,61551.0,0.69360494]
[1727929905372,0.000818,61552.0,61551.0,0.70760494]
[1727929906421,0.000818,61552.0,61551.0,0.69560494]
[1727929906674,0.000818,61552.0,61551.0,0.70960494]
[1727929907539,0.000818,61552.0,61551.0,0.7547276]
[1727929908065,0.02628607,61552.0,61551.0,0.7547276]
[1727929908274,0.00657151,61552.0,61551.0,0.7547276]
[1727929908480,0.000818,61554.0,61552.0,0.123]
[1727929908685,0.000818,61554.0,61553.0,0.41615571]
[1727929909106,0.000818,61554.0,61553.0,0.5476236]
[1727929910595,0.000818,61554.0,61553.0,0.5726236]
[1727929910802,0.000818,61554.0,61553.0,0.44115571]
[1727929911017,0.000818,61554.0,61553.0,0.5726236]
[1727929911969,0.000818,61554.0,61553.0,0.81655579]
[1727929912173,0.000818,61554.0,61553.0,0.7759336]
[1727929912365,0.005,61568.0,61567.0,0.26140689]
[1727929914082,0.005,61568.0,61567.0,0.26740689]
[1727929914298,0.005,61568.0,61567.0,0.27440689]
[1727929915563,0.005,61569.0,61568.0,0.129937]
[1727929915791,0.005,61570.0,61569.0,0.129935]
[1727929917266,0.03046462,61570.0,61569.0,0.129935]
[1727929917477,0.005,61570.0,61569.0,0.129935]
[1727929917693,0.005,61573.0,61569.0,0.009]
[1727929917900,0.005,61573.0,61572.0,0.129929]
[1727929917901,0.015,61573.0,61572.0,0.129929]
[1727929918544,0.005,61570.0,61569.0,0.398802]
[1727929918724,0.005,61570.0,61569.0,0.394802]
[1727929919200,0.005,61570.0,61569.0,0.395802]
[1727929919399,0.005,61570.0,61569.0,0.135935]
[1727929919643,0.005,61570.0,61569.0,0.129935]
[1727929919878,0.01,61573.0,61546.0,0.03261]
[1727929919879,0.213658,61558.0,61546.0,0.03261]
[1727929920096,0.213658,61558.0,61552.0,0.24393219]
[1727929920327,0.139969,61553.0,61552.0,0.24393219]
[1727929920551,0.144969,61553.0,61552.0,0.24393219]
[1727929920775,0.129983,61547.0,61545.0,0.29372699]
[1727929920993,0.134984,61546.0,61545.0,0.29372699]
[1727929921210,0.129986,61545.0,61544.0,0.001636]
[1727929921653,0.13804761,61545.0,61544.0,0.001636]
[1727929922162,0.14304761,61545.0,61544.0,0.001636]
[1727929922385,0.22644761,61545.0,61544.0,0.001636]
[1727929923290,0.22444761,61545.0,61544.0,0.008636]
[1727929923508,0.22644761,61545.0,61544.0,0.016636]
[1727929924430,0.22444761,61545.0,61544.0,0.016636]
[1727929927679,0.01306161,61545.0,61544.0,0.016636]
[1727929928138,0.01506161,61545.0,61544.0,0.016636]
[1727929928783,0.14504761,61545.0,61544.0,0.016636]
[1727929928988,0.01506161,61545.0,61544.0,0.016636]
[1727929929202,0.14504761,61545.0,61544.0,0.016636]
[1727929931824,0.01506161,61545.0,61544.0,0.016636]
[1727929932231,0.04053567,61545.0,61544.0,0.016636]
[1727929932907,0.17052167,61545.0,61544.0,0.016636]
[1727929934721,0.14504761,61545.0,61544.0,0.016636]
[1727929934976,0.01306161,61545.0,61544.0,0.016636]
[1727929935221,0.14304761,61545.0,61544.0,0.016636]
[1727929935487,0.14504761,61545.0,61544.0,0.016636]
[1727929935749,0.01306161,61545.0,61544.0,0.016636]
[1727929936002,0.005,61545.0,61544.0,0.016636]
[1727929936521,0.01286935,61545.0,61544.0,0.146624]
[1727929936771,0.005,61545.0,61544.0,0.146624]
[1727929937007,0.005,61550.0,61546.0,0.259967]
[1727929937219,0.005,61552.0,61551.0,0.129973]
[1727929937472,0.015,61552.0,61551.0,0.129973]
[1727929937669,0.015,61552.0,61544.0,0.016636]
[1727929937670,0.005,61545.0,61544.0,0.016636]
[1727929937908,0.144986,61545.0,61544.0,0.016636]
[1727929938338,0.15288505,61545.0,61544.0,0.016636]
[1727929938595,0.15288505,61545.0,61544.0,0.001636]
[1727929938805,0.15488505,61545.0,61544.0,0.001636]
[1727929940719,0.15588505,61545.0,61544.0,0.001636]
[1727929942944,0.18136,61545.0,61544.0,0.001636]
[1727929943161,0.18036,61545.0,61544.0,0.001636]
[1727929943606,0.18136,61545.0,61544.0,0.001636]
[1727929943820,0.15488505,61545.0,61544.0,0.001636]
[1727929944214,0.15588505,61545.0,61544.0,0.001636]
[1727929944465,0.15488505,61545.0,61544.0,0.001636]
[1727929945327,0.15588505,61545.0,61544.0,0.001636]
[1727929945779,0.15488505,61545.0,61544.0,0.001636]
[1727929946269,0.15488505,61545.0,61544.0,0.002636]
[1727929946923,0.18035955,61545.0,61544.0,0.003636]
[1727929947403,0.15488505,61545.0,61544.0,0.003636]
[1727929948035,0.02489905,61545.0,61544.0,0.002636]
[1727929948248,0.15488505,61545.0,61544.0,0.002636]
[1727929948671,0.15488505,61545.0,61544.0,0.001636]
[1727929948943,0.15488505,61545.0,61544.0,0.002636]
[1727929950006,0.15488505,61545.0,61544.0,0.003636]
[1727929950908,0.02489905,61545.0,61544.0,0.001636]
[1727929951098,0.02489905,61545.0,61544.0,0.131624]
[1727929951323,0.016,61545.0,61544.0,0.131624]
[1727929951537,0.04147358,61545.0,61544.0,0.131624]
[1727929951743,0.04047358,61545.0,61544.0,0.131624]
[1727929951959,0.04047358,61545.0,61544.0,0.132624]
[1727929952180,0.05031778,61545.0,61544.0,0.132624]
[1727929952667,0.04247358,61545.0,61544.0,0.002636]
[1727929953093,0.17245958,61545.0,61544.0,0.002636]
[1727929953313,0.04247358,61545.0,61544.0,0.002636]
[1727929953526,0.04247358,61545.0,61544.0,0.003636]
[1727929953771,0.17245958,61545.0,61544.0,0.003636]
[1727929954651,0.146986,61545.0,61544.0,0.003636]
[1727929956157,0.017,61545.0,61544.0,0.003636]
[1727929957896,0.146986,61545.0,61544.0,0.003636]
[1727929965407,0.35657911,61545.0,61544.0,0.003636]
[1727929965673,0.35657893,61545.0,61544.0,0.003636]
[1727929967720,0.38205263,61545.0,61544.0,0.003636]
[1727929969488,0.4796845,61545.0,61544.0,0.003636]
[1727929972139,0.38205263,61545.0,61544.0,0.003636]
[1727929972360,0.25206663,61545.0,61544.0,0.003636]
[1727929972585,0.34969926,61545.0,61544.0,0.003636]
[1727929973036,0.08928748,61545.0,61544.0,0.224924]
[1727929973344,0.09128748,61545.0,61544.0,0.224924]
[1727929973553,0.11569694,61545.0,61544.0,0.224924]
[1727929973766,0.11569389,61545.0,61544.0,0.224924]
[1727929975149,0.11569224,61545.0,61544.0,0.224924]
[1727929975777,0.11369224,61545.0,61544.0,0.224924]
[1727929976002,0.0304737,61545.0,61544.0,0.307924]
[1727929976224,0.005,61545.0,61544.0,0.307924]
[1727929978430,0.05381134,61545.0,61544.0,0.307924]
[1727929978860,0.005,61545.0,61544.0,0.307924]
[1727929979295,0.04047282,61545.0,61544.0,0.307924]
[1727929979550,0.03047282,61545.0,61544.0,0.307924]
[1727929979778,0.04047282,61545.0,61544.0,0.307924]
[1727929979984,0.07928416,61545.0,61544.0,0.307924]
[1727929980192,0.04047282,61545.0,61544.0,0.307924]
[1727929980830,0.03047282,61545.0,61544.0,0.39427816]
[1727929981909,0.02547282,61545.0,61544.0,0.39427816]
[1727929982398,0.02547282,61545.0,61544.0,0.68046487]
[1727929982827,0.02547282,61545.0,61544.0,0.6973064]
[1727929983267,0.02547282,61545.0,61544.0,0.6963064]
[1727929983507,0.02547282,61545.0,61544.0,0.67846487]
[1727929983746,0.02547282,61545.0,61544.0,0.68846487]
[1727929983980,0.02547282,61545.0,61544.0,0.67846487]
[1727929984193,0.02547282,61545.0,61544.0,0.6953064]
[1727929984414,0.02547282,61545.0,61544.0,0.7043064]
[1727929984603,0.005,61555.0,61554.0,0.304567]
[1727929986573,0.005,61555.0,61554.0,0.307567]
[1727929986784,0.005,61555.0,61554.0,0.311567]
[1727929987011,0.005,61555.0,61554.0,0.308567]
[1727929987254,0.005,61555.0,61554.0,0.313567]
[1727929987505,0.007,61555.0,61554.0,0.236767]
[1727929987721,0.03247139,61555.0,61554.0,0.236767]
[1727929988192,0.25879055,61555.0,61554.0,0.009]
[1727929988412,0.54429163,61555.0,61554.0,0.009]
[1727929988686,0.63679163,61555.0,61554.0,0.009]
[1727929988920,0.61132024,61555.0,61554.0,0.009]
[1727929989581,0.61132024,61555.0,61554.0,0.005]
[1727929989796,0.61132024,61555.0,61554.0,0.006]
[1727929990147,0.48135524,61555.0,61544.0,0.001636]
[1727929990384,0.23744829,61550.0,61549.0,0.24393219]
[1727929990619,0.23744829,61550.0,61544.0,0.001636]
[1727929990620,0.131986,61545.0,61544.0,0.001636]
[1727929990865,0.141986,61545.0,61544.0,0.001636]
[1727929991111,0.146986,61545.0,61544.0,0.001636]
[1727929991827,0.146986,61545.0,61544.0,0.010636]
[1727929993495,0.146986,61545.0,61544.0,0.018636]
[1727929997523,0.5334614,61545.0,61544.0,0.018636]
[1727929997742,0.35718811,61545.0,61544.0,0.018636]
[1727929998193,0.38266306,61545.0,61544.0,0.018636]
[1727929998628,0.38266306,61545.0,61544.0,0.009636]
[1727929998895,0.35718811,61545.0,61544.0,0.009636]
[1727929999336,0.35718811,61545.0,61544.0,0.001636]
[1727929999553,0.35718811,61545.0,61544.0,0.004636]
[1727929999994,0.35718811,61545.0,61544.0,0.001636]
[1727930000473,0.48201073,61545.0,61544.0,0.001636]
[1727930000707,0.35818811,61545.0,61544.0,0.001636]
[1727930000920,0.48000993,61545.0,61544.0,0.001636]
[1727930001174,0.48200993,61545.0,61544.0,0.001636]
[1727930001837,0.50748543,61545.0,61544.0,0.001636]
[1727930002062,0.38566361,61545.0,61544.0,0.001636]
[1727930003432,0.50745614,61545.0,61544.0,0.001636]
[1727930004575,0.48198064,61545.0,61544.0,0.001636]
[1727930005291,0.48197302,61545.0,61544.0,0.001636]
[1727930005726,0.36018811,61545.0,61544.0,0.001636]
[1727930005943,0.48196236,61545.0,61544.0,0.001636]
[1727930007136,0.50743821,61545.0,61544.0,0.001636]
[1727930008089,0.48196236,61545.0,61544.0,0.001636]
[1727930008315,0.36018811,61545.0,61544.0,0.001636]
[1727930008809,0.48196236,61545.0,61544.0,0.001636]
[1727930009228,0.36018811,61545.0,61544.0,0.001636]
[1727930010362,0.45519153,61545.0,61544.0,0.001636]
[1727930010557,0.35969153,61545.0,61544.0,0.001636]
[1727930011264,0.38516795,61545.0,61544.0,0.001636]
[1727930011764,0.47155092,61545.0,61544.0,0.001636]
[1727930013877,0.4460745,61545.0,61544.0,0.001636]
[1727930014304,0.54344398,61545.0,61544.0,0.001636]
[1727930015559,0.45706101,61545.0,61544.0,0.001636]
[1727930016255,0.3597099,61545.0,61544.0,0.001636]
[1727930016472,0.35968487,61545.0,61544.0,0.001636]
[1727930016924,0.2484822,61545.0,61544.0,0.001636]
[1727930017082,0.24848199,61545.0,61544.0,0.001636]
[1727930017360,0.35963655,61545.0,61544.0,0.001636]
[1727930019132,0.45699579,61545.0,61544.0,0.001636]
[1727930019616,0.35963655,61545.0,61544.0,0.001636]
[1727930020245,0.38511308,61545.0,61544.0,0.001636]
[1727930020461,0.38509872,61545.0,61544.0,0.001636]
[1727930020655,0.17546253,61545.0,61544.0,0.001636]
[1727930023055,0.38510393,61545.0,61544.0,0.001636]
[1727930023284,0.17546253,61545.0,61544.0,0.001636]
[1727930023746,0.38509114,61545.0,61544.0,0.001636]
[1727930024216,0.17546253,61545.0,61544.0,0.001636]
[1727930024472,0.149986,61545.0,61544.0,0.001636]
[1727930025982,0.3596197,61545.0,61544.0,0.001636]
[1727930026220,0.149986,61545.0,61544.0,0.001636]
[1727930026929,0.35964182,61545.0,61544.0,0.001636]
[1727930027173,0.45699619,61545.0,61544.0,0.001636]
[1727930027600,0.48247257,61545.0,61544.0,0.001636]
[1727930027819,0.3851182,61545.0,61544.0,0.001636]
[1727930028039,0.35964182,61545.0,61544.0,0.001636]
[1727930028277,0.45699619,61545.0,61544.0,0.001636]
[1727930028898,0.35964182,61545.0,61544.0,0.001636]
[1727930029116,0.45699619,61545.0,61544.0,0.001636]
[1727930030212,0.48133479,61545.0,61544.0,0.001636]
[1727930031391,0.35964182,61545.0,61544.0,0.001636]
[1727930035362,0.22965582,61545.0,61544.0,0.001636]
[1727930035618,0.35964182,61545.0,61544.0,0.001636]
[1727930035862,0.35964182,61545.0,61544.0,0.095636]
[1727930036121,0.149986,61545.0,61544.0,0.001636]
[1727930036640,0.3603285,61545.0,61544.0,0.001636]
[1727930037193,0.38580413,61545.0,61544.0,0.001636]
[1727930038194,0.3603285,61545.0,61544.0,0.001636]
[1727930040598,0.149986,61545.0,61544.0,0.001636]
[1727930041132,0.3599573,61545.0,61544.0,0.001636]
[1727930041393,0.38543303,61545.0,61544.0,0.001636]
[1727930041653,0.53186535,61545.0,61544.0,0.001636]
[1727930043372,0.38543303,61545.0,61544.0,0.001636]
[1727930044612,0.3599573,61545.0,61544.0,0.001636]
[1727930047786,0.38443351,61545.0,61544.0,0.001636]
[1727930048229,0.38543351,61545.0,61544.0,0.001636]
[1727930048442,0.38343351,61545.0,61544.0,0.001636]
[1727930048675,0.38243351,61545.0,61544.0,0.001636]
[1727930049679,0.38343351,61545.0,61544.0,0.001636]
[1727930049945,0.38443351,61545.0,61544.0,0.001636]
[1727930050130,0.38343351,61545.0,61544.0,0.001636]
[1727930050590,0.38443351,61545.0,61544.0,0.001636]
[1727930054714,0.3589573,61545.0,61544.0,0.001636]
[1727930057623,0.38443388,61545.0,61544.0,0.001636]
[1727930058042,0.3589573,61545.0,61544.0,0.001636]
[1727930061375,0.60009366,61545.0,61544.0,0.001636]
[1727930062033,0.53523899,61545.0,61544.0,0.001636]
[1727930062251,0.53423899,61545.0,61544.0,0.001636]
[1727930062747,0.53323899,61545.0,61544.0,0.001636]
[1727930063162,0.53723899,61545.0,61544.0,0.001636]
[1727930063380,0.53323899,61545.0,61544.0,0.001636]
[1727930063601,0.53623899,61545.0,61544.0,0.001636]
[1727930063855,0.54023899,61545.0,61544.0,0.001636]
[1727930064048,0.53723899,61545.0,61544.0,0.001636]
[1727930064280,0.54123899,61545.0,61544.0,0.001636]